fUST/lending_fUST_20240628
["ID","MTS","AMOUNT","RATE_DAILY","PERIOD"]
[330504075,1719525039287,-1608.26,0.00041917,120]
[330504076,1719525039301,-2152.17,0.00042181,3]
[330504077,1719525039312,-1608.26,0.00042191,120]
[330504078,1719525039323,-154.82195475,0.00042229,4]
[330504079,1719525039333,-247.47525819,0.00042398,4]
[330504080,1719525039344,-1608.26,0.00042465,120]
[330504081,1719525039355,-273.34105878,0.00042629,30]
[330504082,1719525039365,-1608.26,0.00042739,120]
[330504083,1719525039375,-373.8816229,0.00042958,4]
[330504084,1719525039388,-1498.07496319,0.00043003,5]
[330504085,1719525039399,-1608.26,0.00043013,120]
[330504086,1719525039409,-1608.26,0.00043287,120]
[330504087,1719525039420,-1608.26,0.00043561,120]
[330504088,1719525039430,-5277.7935507,0.00043732,2]
[330504089,1719525039441,-1375.94358286,0.000438,30]
[330504090,1719525039450,-2899.78050115,0.000438,120]
[330504091,1719525039460,-2479.20380596,0.00043825,31]
[330504092,1719525039471,-14980.7496319,0.00043825,5]
[330504093,1719525039481,-324.52500861,0.00043835,3]
[330504094,1719525039490,-209.11741686,0.00043835,120]
[330504095,1719525039501,-500.0,0.00043835,120]
[330504096,1719525039511,-324.83401137,0.00043835,120]
[330504097,1719525039521,-18454.76,0.00043835,120]
[330504098,1719525039531,-500.0,0.00043835,120]
[330504099,1719525039541,-500.0,0.00043835,120]
[330504100,1719525039551,-523.95463356,0.00043835,120]
[330504101,1719525039562,-500.0,0.00043835,120]
[330504102,1719525039572,-500.0,0.00043835,120]
[330504103,1719525039582,-821.09,0.00043835,120]
[330504104,1719525039592,-500.0,0.00043835,120]
[330504105,1719525039603,-500.0,0.00043835,120]
[330504106,1719525039613,-500.0,0.00043835,120]
[330504107,1719525039624,-467.65924197,0.00043835,120]
[330504108,1719525039634,-500.0,0.00043835,120]
[330504109,1719525039644,-500.0,0.00043835,120]
[330504110,1719525039654,-469.53673399,0.00043835,120]
[330504111,1719525039664,-500.0,0.00043835,120]
[330504112,1719525039675,-500.0,0.00043835,120]
[330504113,1719525039684,-500.0,0.00043835,120]
[330504114,1719525039694,-500.0,0.00043835,120]
[330504115,1719525039704,-500.0,0.00043835,30]
[330504116,1719525039714,-577.59,0.00043835,120]
[330504117,1719525039724,-500.0,0.00043835,120]
[330504118,1719525039735,-500.0,0.00043835,120]
[330504119,1719525039745,-500.0,0.00043835,120]
[330504120,1719525039755,-500.0,0.00043835,120]
[330504121,1719525039765,-500.0,0.00043835,120]
[330504122,1719525039775,-500.0,0.00043835,120]
[330504123,1719525039784,-500.0,0.00043835,120]
[330504124,1719525039797,-500.0,0.00043835,120]
[330504125,1719525039807,-500.0,0.00043835,120]
[330504126,1719525039818,-518.8800533,0.00043835,120]
[330504127,1719525039828,-500.0,0.00043835,120]
[330504128,1719525039838,-617.78815265,0.00043835,120]
[330504129,1719525039848,-500.0,0.00043835,120]
[330504130,1719525039859,-626.65037284,0.00043835,120]
[330504132,1719525039868,-500.0,0.00043835,120]
[330504133,1719525039879,-500.0,0.00043835,120]
[330504134,1719525039889,-500.0,0.00043835,120]
[330504135,1719525039900,-500.0,0.00043835,120]
[330504137,1719525039921,-500.0,0.00043835,120]
[330504139,1719525039934,-500.0,0.00043835,120]
[330504140,1719525039946,-500.0,0.00043835,120]
[330504141,1719525039956,-615.87011713,0.00043835,120]
[330504142,1719525039967,-500.0,0.00043835,120]
[330504143,1719525039978,-500.0,0.00043835,120]
[330504144,1719525039988,-500.0,0.00043835,120]
[330504145,1719525039999,-547.50138315,0.00043835,120]
[330504146,1719525040010,-500.0,0.00043835,120]
[330504147,1719525040020,-500.0,0.00043835,120]
[330504148,1719525040031,-500.0,0.00043835,120]
[330504149,1719525040041,-1366.32,0.00043835,120]
[330504150,1719525040052,-500.0,0.00043835,120]
[330504151,1719525040063,-500.0,0.00043835,120]
[330504152,1719525040075,-500.0,0.00043835,120]
[330504153,1719525040085,-500.0,0.00043835,120]
[330504154,1719525040096,-500.0,0.00043835,120]
[330504155,1719525040107,-500.0,0.00043835,120]
[330504156,1719525040117,-284.94,0.00043835,7]
[330504157,1719525040128,-500.0,0.00043835,120]
[330504158,1719525040139,-500.0,0.00043835,120]
[330504159,1719525040149,-500.0,0.00043835,120]
[330504160,1719525040160,-500.0,0.00043835,120]
[330504161,1719525040170,-500.0,0.00043835,120]
[330504168,1719525040355,-500.0,0.00043835,120]
[330504169,1719525040365,-500.0,0.00043835,120]
[330504170,1719525040377,-500.0,0.00043835,120]
[330504171,1719525040387,-500.0,0.00043835,120]
[330504172,1719525040396,-500.0,0.00043835,120]
[330504173,1719525040406,-500.0,0.00043835,120]
[330504174,1719525040415,-500.0,0.00043835,120]
[330504175,1719525040424,-500.0,0.00043835,120]
[330504176,1719525040434,-732.51,0.00043835,120]
[330504177,1719525040444,-497.15790926,0.00043835,3]
[330504178,1719525040454,-500.0,0.00043835,120]
[330504179,1719525040463,-518.6348325,0.00043835,120]
[330504180,1719525040473,-633.19,0.00043835,120]
[330504181,1719525040483,-151.0,0.00043835,14]
[330504182,1719525040492,-151.0,0.00043835,14]
[330504183,1719525040502,-500.0,0.00043835,30]
[330504184,1719525040511,-500.0,0.00043835,120]
[330504185,1719525040521,-500.0,0.00043835,10]
[330504186,1719525040531,-500.0,0.00043835,120]
[330504187,1719525040541,-500.0,0.00043835,120]
[330504188,1719525040550,-500.0,0.00043835,120]
[330504189,1719525040560,-166.82612266,0.00043835,120]
[330504190,1719525040569,-500.0,0.00043835,120]
[330504191,1719525040579,-500.0,0.00043835,120]
[330504192,1719525040588,-585.3,0.00043835,120]
[330504193,1719525040598,-500.0,0.00043835,120]
[330504194,1719525040608,-500.0,0.00043835,120]
[330504195,1719525040618,-414.27984714,0.00043835,120]
[330504196,1719525040628,-500.0,0.00043835,120]
[330504197,1719525040637,-500.0,0.00043835,7]
[330504198,1719525040647,-500.0,0.00043835,120]
[330504199,1719525040656,-500.0,0.00043835,120]
[330504200,1719525040666,-546.32926241,0.00043835,120]
[330504201,1719525040675,-500.0,0.00043835,120]
[330504202,1719525040685,-571.33075217,0.00043835,120]
[330504203,1719525040694,-500.0,0.00043835,120]
[330504204,1719525040704,-703.47,0.00043835,120]
[330504205,1719525040713,-500.0,0.00043835,120]
[330504206,1719525040722,-711.93,0.00043835,120]
[330504207,1719525040732,-500.0,0.00043835,28]
[330504208,1719525040742,-500.0,0.00043835,120]
[330504209,1719525040752,-500.0,0.00043835,120]
[330504210,1719525040763,-500.0,0.00043835,120]
[330504211,1719525040772,-500.0,0.00043835,120]
[330504212,1719525040782,-593.26,0.00043835,120]
[330504213,1719525040792,-943.22,0.00043835,120]
[330504214,1719525040803,-500.0,0.00043835,120]
[330504215,1719525040813,-500.0,0.00043835,2]
[330504216,1719525040822,-1759.67,0.00043835,120]
[330504217,1719525040831,-500.0,0.00043835,120]
[330504218,1719525040840,-500.0,0.00043835,120]
[330504219,1719525040850,-500.0,0.00043835,120]
[330504220,1719525040862,-500.0,0.00043835,120]
[330504221,1719525040872,-500.0,0.00043835,120]
[330504222,1719525040881,-500.0,0.00043835,120]
[330504223,1719525040890,-500.0,0.00043835,120]
[330504224,1719525040900,-592.54876521,0.00043835,120]
[330504225,1719525040909,-500.0,0.00043835,120]
[330504226,1719525040918,-562.85,0.00043835,120]
[330504227,1719525040928,-500.0,0.00043835,120]
[330504228,1719525040937,-500.0,0.00043835,120]
[330504229,1719525040946,-500.0,0.00043835,120]
[330504230,1719525040956,-500.0,0.00043835,120]
[330504231,1719525040965,-500.0,0.00043835,120]
[330504232,1719525040974,-500.67,0.00043835,120]
[330504233,1719525040984,-500.0,0.00043835,120]
[330504234,1719525040993,-500.0,0.00043835,120]
[330504235,1719525041003,-601.25,0.00043835,120]
[330504236,1719525041012,-500.0,0.00043835,120]
[330504237,1719525041022,-500.0,0.00043835,120]
[330504238,1719525041032,-500.0,0.00043835,120]
[330504239,1719525041041,-500.0,0.00043835,120]
[330504240,1719525041052,-500.0,0.00043835,120]
[330504241,1719525041062,-872.67,0.00043835,120]
[330504242,1719525041072,-500.0,0.00043835,2]
[330504243,1719525041084,-500.0,0.00043835,120]
[330504244,1719525041094,-500.0,0.00043835,120]
[330504245,1719525041104,-500.0,0.00043835,120]
[330504246,1719525041113,-500.0,0.00043835,120]
[330504247,1719525041123,-500.0,0.00043835,120]
[330504248,1719525041132,-1499.74,0.00043835,120]
[330504249,1719525041141,-500.0,0.00043835,120]
[330504250,1719525041151,-500.0,0.00043835,120]
[330504251,1719525041160,-1432.22,0.00043835,120]
[330504252,1719525041170,-500.0,0.00043835,120]
[330504253,1719525041179,-500.0,0.00043835,120]
[330504254,1719525041189,-500.0,0.00043835,120]
[330504255,1719525041198,-991.38,0.00043835,120]
[330504256,1719525041208,-714.0,0.00043835,120]
[330504257,1719525041218,-2424.73,0.00043835,120]
[330504258,1719525041228,-200.0,0.00043835,7]
[330504259,1719525041237,-500.0,0.00043835,120]
[330504260,1719525041247,-1184.6,0.00043835,120]
[330504261,1719525041257,-151.0,0.00043835,14]
[330504262,1719525041266,-151.0,0.00043835,14]
[330504263,1719525041275,-151.0,0.00043835,14]
[330504264,1719525041286,-151.0,0.00043835,14]
[330504265,1719525041300,-500.0,0.00043835,7]
[330504266,1719525041313,-500.0,0.00043835,120]
[330504267,1719525041323,-500.0,0.00043835,120]
[330504268,1719525041332,-938.81,0.00043835,120]
[330504269,1719525041342,-948.04,0.00043835,120]
[330504270,1719525041351,-500.0,0.00043835,120]
[330504271,1719525041360,-500.0,0.00043835,120]
[330504272,1719525041372,-500.0,0.00043835,120]
[330504273,1719525041384,-896.8,0.00043835,120]
[330504274,1719525041394,-997.99,0.00043835,120]
[330504275,1719525041404,-500.0,0.00043835,120]
[330504276,1719525041413,-595.37,0.00043835,120]
[330504277,1719525041423,-2364.96,0.00043835,120]
[330504278,1719525041432,-554.23,0.00043835,120]
[330504279,1719525041441,-500.0,0.00043835,120]
[330504280,1719525041451,-500.0,0.00043835,120]
[330504281,1719525041460,-500.0,0.00043835,120]
[330504282,1719525041470,-500.0,0.00043835,120]
[330504283,1719525041479,-551.67,0.00043835,120]
[330504284,1719525041488,-500.0,0.00043835,120]
[330504285,1719525041497,-500.0,0.00043835,120]
[330504286,1719525041507,-500.0,0.00043835,120]
[330504287,1719525041516,-197.46654443,0.00043835,120]
[330504288,1719525041525,-926.43,0.00043835,120]
[330504289,1719525041535,-500.0,0.00043835,120]
[330504290,1719525041544,-510.10061071,0.00043835,120]
[330504291,1719525041553,-500.0,0.00043835,120]
[330504292,1719525041564,-500.0,0.00043835,120]
[330504293,1719525041573,-1922.61,0.00043835,120]
[330504294,1719525041582,-151.0,0.00043835,14]
[330504295,1719525041592,-572.1105784,0.00043835,120]
[330504296,1719525041602,-500.0,0.00043835,120]
[330504297,1719525041611,-500.0,0.00043835,120]
[330504298,1719525041620,-500.0,0.00043835,120]
[330504299,1719525041630,-679.07,0.00043835,120]
[330504300,1719525041639,-500.0,0.00043835,120]
[330504301,1719525041649,-500.0,0.00043835,120]
[330504302,1719525041659,-500.0,0.00043835,120]
[330504303,1719525041669,-500.0,0.00043835,120]
[330504304,1719525041678,-542.42,0.00043835,120]
[330504305,1719525041687,-500.0,0.00043835,120]
[330504306,1719525041696,-500.0,0.00043835,120]
[330504307,1719525041706,-500.0,0.00043835,120]
[330504308,1719525041717,-500.0,0.00043835,120]
[330504309,1719525041727,-500.0,0.00043835,120]
[330504310,1719525041736,-531.14,0.00043835,120]
[330504311,1719525041745,-780.41,0.00043835,120]
[330504312,1719525041754,-500.0,0.00043835,120]
[330504313,1719525041763,-500.0,0.00043835,120]
[330504314,1719525041773,-500.0,0.00043835,120]
[330504315,1719525041782,-500.0,0.00043835,120]
[330504316,1719525041792,-621.59,0.00043835,120]
[330504317,1719525041801,-151.0,0.00043835,14]
[330504318,1719525041812,-151.0,0.00043835,14]
[330504319,1719525041821,-500.0,0.00043835,120]
[330504320,1719525041831,-500.0,0.00043835,120]
[330504321,1719525041840,-500.0,0.00043835,120]
[330504322,1719525041850,-500.0,0.00043835,120]
[330504323,1719525041859,-500.0,0.00043835,120]
[330504324,1719525041868,-500.0,0.00043835,120]
[330504325,1719525041878,-500.0,0.00043835,120]
[330504326,1719525041888,-500.0,0.00043835,30]
[330504327,1719525041897,-500.0,0.00043835,120]
[330504328,1719525041907,-3160.95,0.00043835,120]
[330504329,1719525041916,-500.0,0.00043835,120]
[330504330,1719525041926,-536.65,0.00043835,120]
[330504331,1719525041935,-500.0,0.00043835,120]
[330504332,1719525041945,-338.00050963,0.00043835,120]
[330504333,1719525041954,-500.0,0.00043835,120]
[330504334,1719525041964,-664.25,0.00043835,120]
[330504335,1719525041973,-500.0,0.00043835,120]
[330504336,1719525041983,-500.0,0.00043835,120]
[330504337,1719525041992,-500.0,0.00043835,120]
[330504338,1719525042001,-500.0,0.00043835,120]
[330504339,1719525042011,-569.9,0.00043835,120]
[330504340,1719525042020,-151.0,0.00043835,14]
[330504341,1719525042029,-593.93959269,0.00043835,120]
[330504342,1719525042039,-151.0,0.00043835,14]
[330504343,1719525042048,-500.0,0.00043835,120]
[330504344,1719525042058,-1297.73,0.00043835,120]
[330504345,1719525042071,-963.84,0.00043835,120]
[330504346,1719525042080,-907.9,0.00043835,120]
[330504347,1719525042093,-500.0,0.00043835,2]
[330504348,1719525042102,-500.0,0.00043835,25]
[330504349,1719525042111,-500.0,0.00043835,120]
[330504350,1719525042122,-500.0,0.00043835,120]
[330504351,1719525042131,-500.0,0.00043835,120]
[330504352,1719525042141,-625.99,0.00043835,120]
[330504353,1719525042150,-609.14,0.00043835,120]
[330504354,1719525042160,-500.0,0.00043835,120]
[330504355,1719525042169,-500.0,0.00043835,120]
[330504356,1719525042179,-500.0,0.00043835,120]
[330504357,1719525042188,-500.0,0.00043835,120]
[330504358,1719525042199,-500.0,0.00043835,120]
[330504359,1719525042209,-500.0,0.00043835,120]
[330504360,1719525042219,-500.0,0.00043835,120]
[330504361,1719525042229,-500.0,0.00043835,120]
[330504362,1719525042238,-522.95,0.00043835,120]
[330504363,1719525042247,-500.0,0.00043835,30]
[330504364,1719525042258,-762.24,0.00043835,120]
[330504365,1719525042267,-500.0,0.00043835,120]
[330504366,1719525042277,-500.0,0.00043835,120]
[330504367,1719525042287,-500.0,0.00043835,120]
[330504368,1719525042303,-584.23,0.00043835,120]
[330504369,1719525042315,-151.0,0.00043835,14]
[330504370,1719525042325,-510.97322009,0.00043835,120]
[330504371,1719525042335,-500.0,0.00043835,120]
[330504372,1719525042343,-500.0,0.00043835,14]
[330504373,1719525042352,-500.0,0.00043835,120]
[330504374,1719525042361,-537.00464428,0.00043835,120]
[330504375,1719525042370,-500.0,0.00043835,120]
[330504376,1719525042381,-1480.27,0.00043835,120]
[330504377,1719525042391,-500.0,0.00043835,120]
[330504378,1719525042400,-244.581928,0.00043835,14]
[330504379,1719525042409,-500.0,0.00043835,120]
[330504380,1719525042418,-500.0,0.00043835,120]
[330504381,1719525042428,-500.0,0.00043835,120]
[330504382,1719525042437,-500.0,0.00043835,120]
[330504383,1719525042446,-500.0,0.00043835,120]
[330504384,1719525042455,-629.34901279,0.00043835,120]
[330504385,1719525042464,-500.0,0.00043835,30]
[330504386,1719525042473,-500.0,0.00043835,120]
[330504387,1719525042483,-764.7,0.00043835,120]
[330504388,1719525042492,-757.08,0.00043835,120]
[330504389,1719525042501,-8608.05,0.00043835,120]
[330504390,1719525042510,-500.0,0.00043835,120]
[330504391,1719525042519,-500.0,0.00043835,120]
[330504392,1719525042529,-500.0,0.00043835,120]
[330504393,1719525042539,-500.0,0.00043835,120]
[330504394,1719525042548,-500.0,0.00043835,120]
[330504395,1719525042558,-500.0,0.00043835,120]
[330504396,1719525042568,-500.0,0.00043835,120]
[330504397,1719525042682,-1104.25,0.00043835,120]
[330504398,1719525042692,-500.0,0.00043835,120]
[330504399,1719525042702,-762.73,0.00043835,120]
[330504400,1719525042711,-237.11654139,0.00043835,120]
[330504401,1719525042721,-500.0,0.00043835,120]
[330504402,1719525042730,-500.0,0.00043835,120]
[330504404,1719525042739,-500.0,0.00043835,120]
[330504406,1719525042748,-321.79464858,0.00043835,120]
[330504408,1719525042758,-500.0,0.00043835,120]
[330504410,1719525042767,-1380.15,0.00043835,120]
[330504412,1719525042777,-500.0,0.00043835,120]
[330504414,1719525042786,-1738.10560141,0.00043835,120]
[330504417,1719525042813,-998.62080567,0.00043835,120]
[330504419,1719525042825,-748.14359292,0.00043835,120]
[330504421,1719525042834,-772.78,0.00043835,120]
[330504423,1719525042844,-500.0,0.00043835,120]
[330504427,1719525042853,-725.19,0.00043835,120]
[330504428,1719525042862,-500.0,0.00043835,120]
[330504431,1719525042871,-564.96,0.00043835,60]
[330504432,1719525042880,-500.0,0.00043835,120]
[330504433,1719525042890,-865.93,0.00043835,120]
[330504434,1719525042899,-500.0,0.00043835,120]
[330504435,1719525042908,-561.24,0.00043835,120]
[330504436,1719525042917,-500.0,0.00043835,120]
[330504437,1719525042927,-500.0,0.00043835,120]
[330504438,1719525042936,-500.0,0.00043835,120]
[330504439,1719525042945,-210.3642106,0.00043835,120]
[330504440,1719525042955,-500.0,0.00043835,120]
[330504441,1719525042964,-500.0,0.00043835,120]
[330504442,1719525042974,-1608.26,0.00043835,120]
[330504443,1719525042983,-540.88,0.00043835,120]
[330504444,1719525042992,-500.0,0.00043835,120]
[330504445,1719525043001,-739.22,0.00043835,120]
[330504446,1719525043010,-973.66,0.00043835,120]
[330504447,1719525043019,-500.0,0.00043835,120]
[330504448,1719525043029,-500.0,0.00043835,120]
[330504449,1719525043038,-785.96,0.00043835,120]
[330504450,1719525043048,-500.0,0.00043835,120]
[330504451,1719525043057,-11520.69,0.00043835,120]
[330504452,1719525043067,-524.81,0.00043835,120]
[330504453,1719525043077,-500.0,0.00043835,2]
[330504454,1719525043086,-500.0,0.00043835,120]
[330504455,1719525043096,-500.0,0.00043835,120]
[330504456,1719525043105,-500.0,0.00043835,120]
[330504457,1719525043114,-500.0,0.00043835,120]
[330504458,1719525043123,-1003.33,0.00043835,120]
[330504459,1719525043132,-16030.37,0.00043835,120]
[330504460,1719525043142,-500.0,0.00043835,120]
[330504461,1719525043151,-500.0,0.00043835,120]
[330504462,1719525043161,-500.0,0.00043835,120]
[330504463,1719525043170,-500.0,0.00043835,120]
[330504464,1719525043180,-590.49215839,0.00043835,120]
[330504465,1719525043189,-500.0,0.00043835,120]
[330504466,1719525043198,-500.0,0.00043835,120]
[330504467,1719525043207,-557.26579318,0.00043835,120]
[330504468,1719525043216,-500.0,0.00043835,120]
[330504469,1719525043225,-500.0,0.00043835,120]
[330504471,1719525043234,-500.0,0.00043835,120]
[330504472,1719525043243,-500.0,0.00043835,7]
[330504474,1719525043252,-500.0,0.00043835,120]
[330504475,1719525043261,-668.98,0.00043835,120]
[330504476,1719525043271,-500.0,0.00043835,120]
[330504477,1719525043280,-500.0,0.00043835,120]
[330504478,1719525043289,-500.0,0.00043835,120]
[330504479,1719525043305,-500.0,0.00043835,120]
[330504480,1719525043314,-500.0,0.00043835,120]
[330504481,1719525043323,-729.22,0.00043835,120]
[330504482,1719525043333,-500.0,0.00043835,120]
[330504483,1719525043343,-515.83,0.00043835,120]
[330504484,1719525043352,-500.0,0.00043835,120]
[330504485,1719525043361,-500.0,0.00043835,120]
[330504486,1719525043370,-500.0,0.00043835,120]
[330504487,1719525043381,-500.0,0.00043835,120]
[330504488,1719525043390,-500.0,0.00043835,120]
[330504489,1719525043399,-500.0,0.00043835,120]
[330504490,1719525043409,-1797.67,0.00043835,120]
[330504491,1719525043417,-6452.67,0.00043835,120]
[330504492,1719525043426,-500.0,0.00043835,120]
[330504493,1719525043435,-461.07509977,0.00043835,120]
[330504494,1719525043445,-500.0,0.00043835,120]
[330504495,1719525043454,-580.8,0.00043835,120]
[330504496,1719525043463,-500.0,0.00043835,120]
[330504497,1719525043472,-500.0,0.00043835,120]
[330504498,1719525043481,-500.0,0.00043835,120]
[330504499,1719525043491,-151.0,0.00043835,14]
[330504500,1719525043500,-500.0,0.00043835,120]
[330504501,1719525043510,-151.0,0.00043835,14]
[330504502,1719525043519,-3165.34,0.00043835,120]
[330504503,1719525043528,-500.0,0.00043835,120]
[330504505,1719525043538,-500.0,0.00043835,120]
[330504507,1719525043547,-500.0,0.00043835,120]
[330504508,1719525043557,-500.0,0.00043835,120]
[330504509,1719525043567,-534.29,0.00043835,120]
[330504510,1719525043576,-500.0,0.00043835,120]
[330504511,1719525043586,-287.37908399,0.00043835,120]
[330504512,1719525043596,-1681.12,0.00043835,120]
[330504513,1719525043606,-928.76,0.00043835,120]
[330504514,1719525043615,-500.0,0.00043835,120]
[330504515,1719525043626,-500.0,0.00043835,120]
[330504516,1719525043635,-577.89,0.00043835,120]
[330504517,1719525043647,-500.0,0.00043835,120]
[330504518,1719525043657,-639.1,0.00043835,120]
[330504519,1719525043667,-500.0,0.00043835,120]
[330504520,1719525043677,-500.0,0.00043835,120]
[330504521,1719525043686,-925.39,0.00043835,120]
[330504522,1719525043696,-1557.64,0.00043835,120]
[330504523,1719525043705,-500.0,0.00043835,120]
[330504524,1719525043716,-500.0,0.00043835,120]
[330504525,1719525043726,-500.0,0.00043835,120]
[330504526,1719525043735,-500.0,0.00043835,120]
[330504527,1719525043744,-500.0,0.00043835,120]
[330504528,1719525043753,-500.0,0.00043835,120]
[330504529,1719525043763,-500.0,0.00043835,120]
[330504530,1719525043772,-1118.68,0.00043835,120]
[330504531,1719525043782,-500.0,0.00043835,120]
[330504532,1719525043792,-600.34,0.00043835,120]
[330504533,1719525043802,-2414.34,0.00043835,120]
[330504534,1719525043813,-500.0,0.00043835,120]
[330504535,1719525043823,-292.02023737,0.00043835,120]
[330504536,1719525043833,-500.0,0.00043835,120]
[330504537,1719525043842,-250.0,0.00043835,120]
[330504538,1719525043852,-500.0,0.00043835,120]
[330504539,1719525043862,-637.65,0.00043835,120]
[330504540,1719525043871,-500.0,0.00043835,120]
[330504541,1719525043880,-500.0,0.00043835,120]
[330504542,1719525043889,-398.13827496,0.00043835,120]
[330504543,1719525043899,-500.0,0.00043835,120]
[330504544,1719525043908,-500.0,0.00043835,120]
[330504545,1719525043917,-500.0,0.00043835,120]
[330504546,1719525043926,-500.0,0.00043835,20]
[330504547,1719525043936,-1672.29,0.00043835,120]
[330504548,1719525043946,-500.0,0.00043835,120]
[330504549,1719525043955,-2788.1,0.00043835,120]
[330504550,1719525043965,-597.65,0.00043835,120]
[330504551,1719525043974,-8660.76,0.00043835,120]
[330504552,1719525043984,-525.55562357,0.00043835,120]
[330504553,1719525043993,-500.0,0.00043835,120]
[330504554,1719525044002,-694.93,0.00043835,120]
[330504555,1719525044011,-500.0,0.00043835,120]
[330504556,1719525044020,-3233.47,0.00043835,120]
[330504557,1719525044029,-678.76,0.00043835,2]
[330504558,1719525044039,-155.311989,0.00043835,14]
[330504559,1719525044049,-500.0,0.00043835,120]
[330504560,1719525044059,-742.82,0.00043835,120]
[330504561,1719525044069,-500.0,0.00043835,120]
[330504562,1719525044079,-500.0,0.00043835,120]
[330504563,1719525044088,-500.0,0.00043835,120]
[330504564,1719525044097,-151.0,0.00043835,14]
[330504565,1719525044107,-553.31548446,0.00043835,120]
[330504566,1719525044116,-500.0,0.00043835,120]
[330504567,1719525044125,-219.980532,0.00043835,14]
[330504568,1719525044135,-500.0,0.00043835,120]
[330504569,1719525044144,-151.0,0.00043835,14]
[330504570,1719525044153,-500.0,0.00043835,120]
[330504571,1719525044164,-247.052392,0.00043835,14]
[330504572,1719525044173,-531.44,0.00043835,120]
[330504573,1719525044182,-500.0,0.00043835,120]
[330504574,1719525044191,-500.0,0.00043835,120]
[330504575,1719525044200,-1109.74,0.00043835,120]
[330504576,1719525044209,-500.0,0.00043835,120]
[330504577,1719525044218,-500.0,0.00043835,120]
[330504578,1719525044227,-286.48561354,0.00043835,120]
[330504579,1719525044237,-151.0,0.00043835,14]
[330504580,1719525044246,-500.0,0.00043835,120]
[330504581,1719525044255,-1744.82791589,0.00043835,120]
[330504582,1719525044396,-3126.93373757,0.00027999,4]
[330504583,1719525044406,-444.64202769,0.00036651,2]
[330504584,1719525044415,-244.97894054,0.00039994,4]
[330504585,1719525044424,-55.14208411,0.00043835,120]
[330504586,1719525044433,-490.43124381,0.00043835,120]
[330504587,1719525044442,-510.64936748,0.00043835,30]
[330504588,1719525044451,-558.85,0.00043835,120]
[330504589,1719525044460,-812.14,0.00043835,120]
[330504590,1719525044470,-500.0,0.00043835,120]
[330504591,1719525044479,-822.77,0.00043835,120]
[330504592,1719525044488,-500.0,0.00043835,120]
[330504593,1719525044497,-500.0,0.00043835,120]
[330504594,1719525044506,-500.0,0.00043835,120]
[330504595,1719525044515,-500.0,0.00043835,120]
[330504596,1719525044524,-500.0,0.00043835,120]
[330504597,1719525044534,-500.0,0.00043835,120]
[330504598,1719525044543,-1734.11,0.00043835,120]
[330504599,1719525044553,-788.29,0.00043835,120]
[330504600,1719525044563,-500.0,0.00043835,120]
[330504601,1719525044573,-500.0,0.00043835,120]
[330504602,1719525044582,-500.0,0.00043835,120]
[330504603,1719525044594,-1329.71,0.00043835,120]